bitfinex/quotes_BTCUSD_20250313
["timestamp","ask_amount","ask_price","bid_price","bid_amount"]
[1741836458982,0.97668725,84168.0,84167.0,3e-07]
[1741836463312,0.72572636,84168.0,84167.0,3e-07]
[1741836463516,0.67702636,84168.0,84167.0,3e-07]
[1741836463738,0.665399,84168.0,84167.0,3e-07]
[1741836466611,0.658399,84168.0,84167.0,3e-07]
[1741836466818,0.661399,84168.0,84167.0,3e-07]
[1741836467033,0.658399,84168.0,84167.0,3e-07]
[1741836467319,0.663399,84168.0,84167.0,3e-07]
[1741836467726,0.68202483,84168.0,84167.0,3e-07]
[1741836469891,0.67702483,84168.0,84167.0,3e-07]
[1741836470251,0.68402483,84168.0,84167.0,3e-07]
[1741836471136,0.70902483,84168.0,84167.0,3e-07]
[1741836471340,0.78992483,84168.0,84167.0,3e-07]
[1741836473729,0.68402483,84168.0,84167.0,3e-07]
[1741836474716,0.665399,84168.0,84167.0,3e-07]
[1741836476288,0.658399,84168.0,84167.0,3e-07]
[1741836476705,0.664399,84168.0,84167.0,3e-07]
[1741836476910,0.658399,84168.0,84167.0,3e-07]
[1741836477272,0.663399,84168.0,84167.0,3e-07]
[1741836477717,0.68202513,84168.0,84167.0,3e-07]
[1741836482835,0.663399,84168.0,84167.0,3e-07]
[1741836485844,0.68202671,84168.0,84167.0,3e-07]
[1741836486999,0.70702671,84168.0,84167.0,3e-07]
[1741836487798,0.8519876,84168.0,84167.0,3e-07]
[1741836487998,0.9319876,84168.0,84167.0,3e-07]
[1741836488196,0.81202671,84168.0,84167.0,3e-07]
[1741836488593,0.011883,84151.0,84150.0,9.9e-07]
[1741836488797,0.420783,84151.0,84150.0,9.9e-07]
[1741836489416,0.43941306,84151.0,84150.0,9.9e-07]
[1741836490221,0.249562,84147.0,84146.0,3.9e-07]
[1741836490484,0.249562,84147.0,84146.0,6.7e-07]
[1741836490897,0.683462,84147.0,84146.0,6.7e-07]
[1741836491651,0.687462,84147.0,84146.0,6.7e-07]
[1741836492656,0.662462,84147.0,84146.0,6.7e-07]
[1741836494060,0.78242289,84147.0,84146.0,6.7e-07]
[1741836494263,0.662462,84147.0,84146.0,6.7e-07]
[1741836494607,0.658462,84147.0,84146.0,6.7e-07]
[1741836494778,0.662462,84147.0,84146.0,6.7e-07]
[1741836494933,0.658462,84147.0,84146.0,6.7e-07]
[1741836496222,0.67709308,84147.0,84146.0,6.7e-07]
[1741836496412,0.70209308,84147.0,84146.0,6.7e-07]
[1741836496947,0.70609308,84147.0,84146.0,6.7e-07]
[1741836497824,0.68109308,84147.0,84146.0,6.7e-07]
[1741836500045,0.249583,84140.0,84139.0,8.7e-07]
[1741836500224,0.658483,84140.0,84139.0,0.00012578]
[1741836500932,0.6705024,84140.0,84139.0,0.00012578]
[1741836501357,0.6705024,84140.0,84139.0,7.8e-07]
[1741836501560,0.6725024,84140.0,84139.0,7.8e-07]
[1741836511919,0.7980024,84140.0,84139.0,7.8e-07]
[1741836512118,0.6725024,84140.0,84139.0,7.8e-07]
[1741836513990,0.6705024,84140.0,84139.0,7.8e-07]
[1741836514848,0.6745024,84140.0,84139.0,7.8e-07]
[1741836516140,0.6745024,84140.0,84139.0,0.00017058]
[1741836516342,0.6745024,84140.0,84139.0,5.8e-07]
[1741836516545,0.674842,84140.0,84139.0,5.8e-07]
[1741836517625,0.751142,84140.0,84139.0,5.8e-07]
[1741836519086,0.776142,84140.0,84139.0,5.8e-07]
[1741836519226,0.801142,84140.0,84139.0,5.8e-07]
[1741836519438,0.249613,84130.0,84129.0,9.8e-07]
[1741836519648,0.658513,84130.0,84129.0,9.8e-07]
[1741836519855,0.24966,84114.0,84113.0,5.8e-07]
[1741836520074,0.011888,84112.0,84111.0,5.8e-07]
[1741836520401,0.501388,84112.0,84111.0,5.6e-07]
[1741836520582,0.526388,84112.0,84111.0,5.6e-07]
[1741836520781,0.54980077,84112.0,84111.0,5.6e-07]
[1741836520987,0.57480077,84112.0,84111.0,5.6e-07]
[1741836522468,0.59344104,84112.0,84111.0,5.6e-07]
[1741836523095,0.57922827,84112.0,84111.0,5.6e-07]
[1741836523621,0.58422827,84112.0,84111.0,5.6e-07]
[1741836524225,0.43942827,84112.0,84111.0,5.6e-07]
[1741836524429,0.57926827,84112.0,84111.0,5.6e-07]
[1741836524625,0.70866827,84112.0,84111.0,5.6e-07]
[1741836524847,0.71366827,84112.0,84111.0,5.6e-07]
[1741836525075,0.70866827,84112.0,84111.0,5.6e-07]
[1741836525393,0.71466827,84112.0,84111.0,5.6e-07]
[1741836526142,0.83462916,84112.0,84111.0,5.6e-07]
[1741836526382,0.249728,84091.0,84077.0,0.0477]
[1741836526695,0.658628,84091.0,84077.0,0.0477]
[1741836527704,0.659628,84091.0,84077.0,0.0477]
[1741836527908,0.659628,84091.0,84079.0,0.011893]
[1741836528211,0.65666007,84091.0,84077.0,0.0477]
[1741836528994,0.65666007,84091.0,84078.0,0.237872]
[1741836529203,0.40693207,84091.0,84090.0,0.0823394]
[1741836529408,0.41882307,84091.0,84090.0,0.0823394]
[1741836529715,0.43746295,84091.0,84090.0,0.0823394]
[1741836530148,0.43646295,84091.0,84090.0,0.0823394]
[1741836530503,0.42457195,84091.0,84090.0,0.0823394]
[1741836530915,0.42457195,84091.0,84090.0,0.10324177]
[1741836531115,0.43646295,84091.0,84090.0,0.09134977]
[1741836532145,0.43646295,84091.0,84090.0,0.0823394]
[1741836535096,0.43646295,84091.0,84090.0,0.0003394]
[1741836536910,0.42457195,84091.0,84090.0,0.0003394]
[1741836537434,0.42457195,84091.0,84090.0,0.0122314]
[1741836538201,0.42457195,84091.0,84090.0,0.15221138]
[1741836538613,0.42457195,84091.0,84090.0,0.1282394]
[1741836538754,0.43646295,84091.0,84090.0,0.1282394]
[1741836539451,0.43646295,84091.0,84090.0,0.0789394]
[1741836539625,0.43646295,84091.0,84090.0,0.0003394]
[1741836540006,0.43646295,84091.0,84090.0,3.302e-05]
[1741836540629,0.43680275,84091.0,84090.0,3.302e-05]
[1741836541843,0.41816287,84091.0,84090.0,3.302e-05]
[1741836544233,0.40627187,84091.0,84090.0,3.302e-05]
[1741836544439,0.41816287,84091.0,84090.0,0.00904339]
[1741836544643,0.41916287,84091.0,84090.0,3.302e-05]
[1741836545069,0.40627187,84091.0,84090.0,0.04533302]
[1741836545311,0.41816287,84091.0,84090.0,0.05434339]
[1741836545513,0.41816287,84091.0,84090.0,0.00904339]
[1741836545707,0.41816287,84091.0,84090.0,3.302e-05]
[1741836546332,0.43680234,84091.0,84090.0,3.302e-05]
[1741836549013,0.43780234,84091.0,84090.0,3.302e-05]
[1741836552041,0.56600234,84091.0,84090.0,3.302e-05]
[1741836552463,0.54736287,84091.0,84090.0,3.302e-05]
[1741836553163,0.249753,84083.0,84082.0,7.2e-07]
[1741836553967,0.329453,84083.0,84082.0,7.2e-07]
[1741836554957,0.334453,84083.0,84082.0,7.2e-07]
[1741836555517,0.35309822,84083.0,84082.0,7.2e-07]
[1741836555721,0.27339822,84083.0,84082.0,7.2e-07]
[1741836555937,0.41239822,84083.0,84082.0,7.2e-07]
[1741836557216,0.40739822,84083.0,84082.0,7.2e-07]
[1741836557416,0.41139822,84083.0,84082.0,7.2e-07]
[1741836557848,0.40739822,84083.0,84082.0,7.2e-07]
[1741836558074,0.41139822,84083.0,84082.0,7.2e-07]
[1741836558923,0.81733029,84083.0,84082.0,7.2e-07]
[1741836559976,0.67833029,84083.0,84082.0,7.2e-07]
[1741836560959,0.67433029,84083.0,84082.0,7.2e-07]
[1741836561162,0.42657729,84083.0,84082.0,7.2e-07]
[1741836561362,0.42657729,84083.0,84082.0,0.08050072]
[1741836561574,0.43847029,84083.0,84082.0,0.08050072]
[1741836561959,0.43647029,84083.0,84082.0,0.08050072]
[1741836562172,0.43647029,84083.0,84082.0,7.2e-07]
[1741836562392,0.43847029,84083.0,84082.0,7.2e-07]
[1741836563508,0.43881009,84083.0,84082.0,7.2e-07]
[1741836563729,0.43681009,84083.0,84082.0,7.2e-07]
[1741836563950,0.43781009,84083.0,84082.0,7.2e-07]
[1741836565082,0.42591709,84083.0,84082.0,7.2e-07]
[1741836565290,0.42591709,84083.0,84082.0,0.00902264]
[1741836566009,0.43781009,84083.0,84082.0,0.00902264]
[1741836566793,0.43681009,84083.0,84082.0,0.00902264]
[1741836568465,0.42491709,84083.0,84082.0,7.2e-07]
[1741836568836,0.40627187,84083.0,84082.0,0.02091564]
[1741836569061,0.40627187,84083.0,84082.0,0.01189372]
[1741836569265,0.40627187,84083.0,84082.0,0.02091564]
[1741836569820,0.40627187,84083.0,84082.0,0.03279733]
[1741836570277,0.40627187,84083.0,84082.0,0.02091564]
[1741836570700,0.0003398,84083.0,84082.0,0.02091564]
[1741836571648,0.01898009,84083.0,84082.0,0.02091564]
[1741836573845,0.01898009,84083.0,84082.0,0.00902264]
[1741836576018,0.03087309,84083.0,84082.0,0.00902264]
[1741836577439,0.03087309,84083.0,84082.0,7.2e-07]
[1741836579573,0.0122328,84083.0,84082.0,7.2e-07]
[1741836582547,0.03087588,84083.0,84082.0,7.2e-07]
[1741836583143,0.11933053,84083.0,84082.0,7.2e-07]
[1741836583327,0.12133053,84083.0,84082.0,7.2e-07]
[1741836583530,0.10268745,84083.0,84082.0,7.2e-07]
[1741836585078,0.0142328,84083.0,84082.0,7.2e-07]
[1741836586513,0.03287616,84083.0,84082.0,7.2e-07]
[1741836586714,0.02098316,84083.0,84082.0,7.2e-07]
[1741836586932,0.03287616,84083.0,84082.0,7.2e-07]
[1741836587140,0.03287616,84083.0,84082.0,0.00902264]
[1741836587321,0.03287616,84083.0,84082.0,7.2e-07]
[1741836590011,0.11147616,84083.0,84082.0,7.2e-07]
[1741836593050,0.03287616,84083.0,84082.0,7.2e-07]
[1741836601009,0.03287616,84083.0,84082.0,0.01189372]
[1741836601010,0.02098316,84083.0,84082.0,0.01189372]
[1741836601603,0.03287616,84083.0,84082.0,7.2e-07]
[1741836601762,0.03087616,84083.0,84082.0,7.2e-07]
[1741836602009,0.03187616,84083.0,84082.0,7.2e-07]
[1741836602577,0.0132328,84083.0,84082.0,7.2e-07]
[1741836603961,0.02509064,84083.0,84082.0,7.2e-07]
[1741836605960,0.43102271,84083.0,84082.0,7.2e-07]
[1741836607503,0.44966653,84083.0,84082.0,7.2e-07]
[1741836612198,0.44966653,84083.0,84065.0,0.0001697]
[1741836612199,0.374085,84072.0,84071.0,7.2e-07]
[1741836612404,0.78001707,84072.0,84071.0,7.5e-07]
[1741836613166,0.78001707,84072.0,84065.0,0.0001697]
[1741836613167,0.249803,84066.0,84065.0,4.5e-07]
[1741836615516,0.250803,84066.0,84065.0,4.5e-07]
[1741836617307,0.2694511,84066.0,84065.0,4.5e-07]
[1741836617512,0.67538317,84066.0,84065.0,4.5e-07]
[1741836623600,0.75738317,84066.0,84065.0,4.5e-07]
[1741836623831,0.73873507,84066.0,84065.0,4.5e-07]
[1741836624165,0.73773507,84066.0,84065.0,4.5e-07]
[1741836624602,0.74273507,84066.0,84065.0,4.5e-07]
[1741836624971,0.73773507,84066.0,84065.0,4.5e-07]
[1741836625346,0.74373507,84066.0,84065.0,4.5e-07]
[1741836627007,0.76238321,84066.0,84065.0,4.5e-07]
[1741836628907,0.80798321,84066.0,84065.0,4.5e-07]
[1741836629350,0.331835,84055.0,84054.0,2.5e-07]
[1741836629551,0.87676707,84055.0,84054.0,2.5e-07]
[1741836630089,0.8954173,84055.0,84054.0,2.5e-07]
[1741836631801,0.8994173,84055.0,84054.0,2.5e-07]
[1741836632709,0.8954173,84055.0,84054.0,2.5e-07]
[1741836632950,0.9014173,84055.0,84054.0,2.5e-07]
[1741836633154,0.6804173,84055.0,84054.0,2.5e-07]
[1741836633328,0.66176707,84055.0,84054.0,2.5e-07]
[1741836634168,0.41193207,84055.0,84054.0,2.5e-07]
[1741836634349,0.41193207,84055.0,84054.0,0.0866509]
[1741836634547,0.42382807,84055.0,84054.0,0.0866509]
[1741836634776,0.41782807,84055.0,84054.0,0.07700025]
[1741836635166,0.42082807,84055.0,84054.0,0.07700025]
[1741836635365,0.41782807,84055.0,84054.0,0.07700025]
[1741836635795,0.41882807,84055.0,84054.0,0.07700025]
[1741836636220,0.41882807,84055.0,84054.0,2.5e-07]
[1741836636370,0.41858884,84055.0,84054.0,2.5e-07]
[1741836637397,0.55758884,84055.0,84054.0,2.5e-07]
[1741836637605,0.64058884,84055.0,84054.0,2.5e-07]
[1741836637814,0.66558884,84055.0,84054.0,2.5e-07]
[1741836638023,0.66558884,84055.0,84039.0,8e-05]
[1741836638024,0.24988,84040.0,84039.0,2.5e-07]
[1741836638185,0.33218,84040.0,84039.0,2.5e-07]
[1741836638407,0.47118,84040.0,84039.0,2.5e-07]
[1741836638641,0.51828,84040.0,84039.0,2.5e-07]
[1741836639045,0.0119,84032.0,84031.0,4.5e-07]
[1741836639251,0.65559684,84032.0,84031.0,4.5e-07]
[1741836639425,0.65559684,84032.0,84031.0,4.3e-07]
[1741836640349,0.66761452,84032.0,84031.0,4.3e-07]
[1741836641272,0.249918,84027.0,84026.0,2.3e-07]
[1741836641473,0.327718,84027.0,84026.0,0.00012533]
[1741836642054,0.34637627,84027.0,84026.0,0.00012533]
[1741836642593,0.34637627,84027.0,84026.0,3.3e-07]
[1741836643738,0.75206911,84027.0,84026.0,3.3e-07]
[1741836643951,0.89606911,84027.0,84026.0,3.3e-07]
[1741836644157,0.89106911,84027.0,84026.0,3.3e-07]
[1741836644510,0.89806911,84027.0,84026.0,3.3e-07]
[1741836645538,0.82026911,84027.0,84026.0,3.3e-07]
[1741836646596,0.94023,84027.0,84026.0,3.3e-07]
[1741836647025,0.82026911,84027.0,84026.0,3.3e-07]
[1741836647581,0.84526911,84027.0,84026.0,3.3e-07]
[1741836648369,0.89126911,84027.0,84026.0,3.3e-07]
[1741836649054,0.89126911,84027.0,84026.0,9.3e-07]
[1741836649861,0.89102986,84027.0,84026.0,9.3e-07]
[1741836651923,1.01099075,84027.0,84026.0,9.3e-07]
[1741836652129,1.09179075,84027.0,84026.0,9.3e-07]
[1741836652352,0.97182986,84027.0,84026.0,9.3e-07]
[1741836652581,0.95317159,84027.0,84026.0,9.3e-07]
[1741836653235,0.95317159,84027.0,83997.0,4.3e-07]
[1741836653403,0.379805,83998.0,83997.0,4.3e-07]
[1741836653601,0.92453784,83998.0,83997.0,4.3e-07]
[1741836653765,0.94953784,83998.0,83997.0,4.3e-07]
[1741836653982,0.92453784,83998.0,83997.0,4.3e-07]
[1741836654180,0.250022,83992.0,83991.0,4.3e-07]
[1741836654382,0.250022,83992.0,83991.0,0.00012553]
[1741836655630,0.27468882,83992.0,83991.0,0.00012553]
[1741836655977,0.28657088,83992.0,83991.0,0.00012553]
[1741836658451,0.69226372,83992.0,83991.0,0.00012553]
[1741836658659,0.69202447,83992.0,83991.0,0.00012553]
[1741836660479,0.44224172,83992.0,83991.0,0.00029523]
[1741836660679,0.43035966,83992.0,83991.0,0.00029523]
[1741836661138,0.43035966,83992.0,83991.0,0.09210123]
[1741836661344,0.02466682,83992.0,83991.0,0.10185436]
[1741836661669,0.02466682,83992.0,83991.0,0.14745436]
[1741836662078,0.01866682,83992.0,83991.0,0.14745436]
[1741836662277,0.02066682,83992.0,83991.0,0.14745436]
[1741836662502,0.01866682,83992.0,83991.0,0.14745436]
[1741836662882,0.03057182,83992.0,83991.0,0.01004836]
[1741836663246,0.011905,83995.0,83991.0,0.00029523]
[1741836663449,0.250013,83996.0,83991.0,0.00029523]
[1741836663635,0.011905,83992.0,83991.0,0.00029523]
[1741836663986,0.011903,84007.0,83997.0,0.011905]
[1741836664236,0.011905,83996.0,83991.0,0.01220123]
[1741836664545,0.011904,84000.0,83991.0,0.01220123]
[1741836664546,0.238087,84003.0,83995.0,0.238108]
[1741836664848,0.011905,83998.0,83996.0,0.00974499]
[1741836665109,0.011904,84004.0,83999.0,0.093204]
[1741836665315,0.011904,84002.0,84000.0,0.0469]
[1741836665520,0.249996,84001.0,84000.0,0.05663848]
[1741836666101,0.26865618,84001.0,84000.0,0.00973848]
[1741836666345,0.011905,83993.0,83992.0,0.08]
[1741836666545,0.011905,83997.0,83992.0,0.08]
[1741836666753,0.01866018,84001.0,83992.0,0.0897515]
[1741836666959,0.01866018,84001.0,83998.0,0.2381]
[1741836667166,0.01866018,84001.0,83997.0,0.011905]
[1741836667386,0.01866018,84001.0,84000.0,0.011904]
[1741836667801,0.01866018,84001.0,84000.0,0.10164248]
[1741836668204,0.01866018,84001.0,84000.0,0.08973848]
[1741836668558,0.03056418,84001.0,84000.0,0.00973848]
[1741836668787,0.011905,83996.0,83992.0,0.08]
[1741836668961,0.011905,83993.0,83992.0,0.08]
[1741836669164,0.25002,83993.0,83992.0,0.08]
[1741836669809,0.011905,83992.0,83991.0,0.00029523]
[1741836670640,0.03056832,83992.0,83991.0,0.00029523]
[1741836672755,0.0303292,83992.0,83991.0,0.01004836]
[1741836672954,0.0303292,83992.0,83991.0,0.00029523]
[1741836673073,0.43836144,83992.0,83991.0,0.00029523]
[1741836673865,0.66481256,83992.0,83991.0,0.00029523]
[1741836674077,0.67671756,83992.0,83991.0,0.00029523]
[1741836674282,0.42669556,83992.0,83991.0,0.00029523]
[1741836674491,0.43860056,83992.0,83991.0,0.01004836]
[1741836674684,0.43860056,83992.0,83991.0,0.00029523]
[1741836675049,0.43660056,83992.0,83991.0,0.00029523]
[1741836675452,0.43760056,83992.0,83991.0,0.00029523]
[1741836675660,0.43660056,83992.0,83991.0,0.00029523]
[1741836676236,0.42469556,83992.0,83991.0,0.00029523]
[1741836676475,0.42469556,83992.0,83991.0,0.01220123]
[1741836676899,0.42469556,83992.0,83991.0,0.02195436]
[1741836677152,0.42469556,83992.0,83991.0,0.09695436]
[1741836677344,0.40603224,83992.0,83991.0,0.09695436]
[1741836678023,0.41793724,83992.0,83991.0,0.08504836]
[1741836678227,0.65605424,83992.0,83991.0,0.07529523]
[1741836678446,0.40603224,83992.0,83991.0,0.07529523]
[1741836678642,0.40603224,83992.0,83991.0,0.08504836]
[1741836678873,0.41793724,83992.0,83991.0,0.07529523]
[1741836679085,0.41793724,83992.0,83991.0,0.00029523]
[1741836680266,0.4366013,83992.0,83991.0,0.00029523]
[1741836680466,0.4366013,83992.0,83991.0,2.3e-07]
[1741836681328,0.5182013,83992.0,83991.0,2.3e-07]
[1741836681533,0.5432013,83992.0,83991.0,2.3e-07]
[1741836681734,0.5452013,83992.0,83991.0,2.3e-07]
[1741836681981,0.5682013,83992.0,83991.0,2.3e-07]
[1741836682434,0.250139,83953.0,83952.0,0.0126232]
[1741836682823,0.250139,83953.0,83952.0,0.02317117]
[1741836682986,0.40569284,83958.0,83952.0,0.02317117]
[1741836683190,0.64390784,83958.0,83952.0,0.02317117]
[1741836683389,0.65581784,83958.0,83952.0,0.03508217]
[1741836683591,0.01191,83957.0,83952.0,0.27331217]
[1741836683787,0.01191,83957.0,83952.0,0.03549842]
[1741836684018,0.40569284,83958.0,83954.0,0.011911]
[1741836684180,0.40569284,83958.0,83957.0,0.01191]
[1741836684606,0.40569284,83958.0,83957.0,0.09411]
[1741836685245,0.40569284,83958.0,83957.0,0.0822]
[1741836685453,0.41760284,83958.0,83952.0,0.03549842]
[1741836685650,0.011911,83953.0,83952.0,0.02358742]
[1741836685854,0.011911,83953.0,83952.0,0.16338742]
[1741836686149,0.011911,83953.0,83952.0,0.02358742]
[1741836687464,0.03058041,83953.0,83952.0,0.01303945]
[1741836687713,0.43627325,83953.0,83952.0,0.01303945]
[1741836687899,0.43603413,83953.0,83952.0,0.01303945]
[1741836691167,0.42436225,83953.0,83952.0,0.01303945]
[1741836691552,0.42436225,83953.0,83952.0,0.02226892]
[1741836691553,0.43627325,83953.0,83952.0,0.02226892]
[1741836691974,0.43627325,83953.0,83952.0,0.01303945]
[1741836695455,0.43603413,83953.0,83952.0,0.01303945]
[1741836696598,0.41760384,83953.0,83952.0,0.01303945]
[1741836696806,0.41760384,83953.0,83952.0,4.5e-07]
[1741836697010,0.250142,83952.0,83951.0,4.5e-07]
[1741836697236,0.65583484,83952.0,83951.0,4.5e-07]
[1741836697779,0.79535484,83952.0,83951.0,4.5e-07]
[1741836698320,0.250157,83947.0,83946.0,5e-08]
[1741836698525,0.323457,83947.0,83946.0,5e-08]
[1741836698810,0.401257,83947.0,83946.0,5e-08]
[1741836699038,0.401257,83947.0,83941.0,6.5e-07]
[1741836699039,0.352971,83942.0,83941.0,6.5e-07]
[1741836699212,0.75866384,83942.0,83941.0,6.5e-07]
[1741836699590,0.7773399,83942.0,83941.0,6.5e-07]
[1741836700225,0.011917,83908.0,83907.0,8e-07]
[1741836700428,0.65596584,83908.0,83907.0,8e-07]
[1741836700953,0.67464757,83908.0,83907.0,8e-07]
[1741836701492,0.67506142,83908.0,83907.0,8e-07]
[1741836702050,0.68713204,83908.0,83907.0,8e-07]
[1741836703239,0.69013204,83908.0,83907.0,8e-07]
[1741836704065,0.75455031,83908.0,83907.0,8e-07]
[1741836704494,0.80055031,83908.0,83907.0,8e-07]
[1741836704862,0.82555031,83908.0,83907.0,8e-07]
[1741836706172,0.84755031,83908.0,83907.0,8e-07]
[1741836706372,0.84755031,83908.0,83873.0,0.0001698]
[1741836706373,0.250374,83874.0,83873.0,0.0001698]
[1741836706577,0.65606684,83874.0,83873.0,0.0001698]
[1741836706980,0.67475312,83874.0,83873.0,0.0001698]
[1741836707865,0.67516672,83874.0,83873.0,0.0001698]
[1741836708643,0.42479272,83874.0,83873.0,0.0120918]
[1741836708840,0.42479272,83874.0,83873.0,0.0001698]
[1741836709073,0.42479272,83874.0,83873.0,0.0095281]
[1741836709302,0.43671472,83874.0,83873.0,0.0001698]
[1741836709503,0.43671472,83874.0,83873.0,0.0095281]
[1741836709647,0.43671472,83874.0,83873.0,0.0001698]
[1741836713720,0.42479272,83874.0,83873.0,0.0001698]
[1741836713847,0.42455349,83874.0,83873.0,0.0001698]
[1741836714274,0.67492749,83874.0,83873.0,0.0001698]
[1741836715845,0.42455349,83874.0,83873.0,0.0001698]
[1741836716040,0.42455349,83874.0,83873.0,0.0095281]
[1741836716282,0.43647549,83874.0,83873.0,0.0095281]
[1741836716691,0.42455349,83874.0,83873.0,0.0095281]
[1741836716891,0.40586721,83874.0,83873.0,0.1047501]
[1741836718000,0.40586721,83874.0,83873.0,0.0928281]
[1741836718406,0.40586721,83874.0,83873.0,0.1047501]
[1741836719566,0.40586721,83874.0,83873.0,0.1057501]
[1741836719771,0.0004136,83874.0,83873.0,0.2461101]
[1741836720332,0.0004136,83874.0,83873.0,0.36605229]
[1741836720538,0.40545361,83905.0,83904.0,0.011918]
[1741836720854,0.0003398,83907.0,83904.0,0.00930772]
[1741836721259,0.011918,83905.0,83904.0,0.00930772]
[1741836721602,0.0003398,83907.0,83903.0,0.250285]
[1741836721855,0.011918,83906.0,83902.0,0.0796]
[1741836722052,0.011918,83906.0,83903.0,0.00012513]
[1741836722251,0.0003398,83907.0,83905.0,0.011918]
[1741836722479,0.011918,83906.0,83903.0,0.00012513]
[1741836722758,0.011918,83906.0,83902.0,0.07872513]
[1741836722910,0.0003398,83907.0,83902.0,0.32913896]
[1741836723140,0.0003398,83907.0,83904.0,0.238367]
[1741836723339,0.0003398,83907.0,83903.0,0.011918]
[1741836723543,0.0003398,83907.0,83904.0,0.011918]
[1741836723766,0.0122568,83907.0,83902.0,0.09076796]
[1741836723968,0.0003398,83907.0,83903.0,0.011918]
[1741836724309,0.0003398,83907.0,83906.0,0.238361]
[1741836724441,0.0003398,83907.0,83906.0,0.250279]
[1741836724649,0.0003398,83907.0,83906.0,0.25958346]
[1741836726322,0.01867649,83930.0,83929.0,0.25021]
[1741836726454,0.01867649,83930.0,83929.0,0.33091]
[1741836727489,0.01867649,83930.0,83929.0,0.33191]
[1741836727890,0.238262,83942.0,83935.0,0.250191]
[1741836728159,0.01867274,83942.0,83938.0,0.250183]
[1741836728335,0.01867274,83942.0,83936.0,0.01057776]
[1741836728492,0.011913,83941.0,83936.0,0.01057776]
[1741836728943,0.01867274,83942.0,83938.0,0.250179]
[1741836729179,0.01867274,83942.0,83941.0,0.011913]
[1741836729767,0.01967274,83942.0,83941.0,0.011913]
[1741836729972,0.01867274,83942.0,83941.0,0.011913]
[1741836730288,0.01967274,83942.0,83941.0,0.011913]
[1741836731028,0.01967274,83942.0,83941.0,0.015913]
[1741836731781,0.01967274,83942.0,83941.0,0.02648145]
[1741836732199,0.01967274,83942.0,83941.0,0.01456845]
[1741836732200,0.25793174,83942.0,83941.0,0.01456845]
[1741836732405,0.26984374,83942.0,83941.0,0.004]
[1741836732610,0.65662461,83942.0,83941.0,0.004]
[1741836733268,0.65662461,83942.0,83932.0,0.75696]
[1741836733269,0.250199,83933.0,83932.0,0.75696]
[1741836733660,0.011914,83933.0,83932.0,0.75696]
[1741836735241,0.011914,83933.0,83932.0,0.76622206]
[1741836735843,0.03058771,83933.0,83932.0,0.76622206]
[1741836736486,0.03058771,83933.0,83932.0,0.77022206]
[1741836737209,0.03058771,83933.0,83932.0,0.76622206]
[1741836737567,0.03258771,83933.0,83932.0,0.76622206]
[1741836739309,0.03058771,83933.0,83932.0,0.76622206]
[1741836739652,0.03258771,83933.0,83932.0,0.76622206]
[1741836739947,0.03258771,83933.0,83932.0,6e-08]
[1741836739948,0.43804132,83933.0,83932.0,6e-08]
[1741836740155,0.58196162,83933.0,83932.0,5.9e-07]
[1741836740387,0.58196162,83933.0,83893.0,0.75668]
[1741836740388,0.011918,83901.0,83893.0,0.75668]
[1741836740533,0.011919,83894.0,83893.0,0.75668]
[1741836741159,0.03060023,83894.0,83893.0,0.75668]
[1741836741528,0.03060023,83894.0,83893.0,0.75680483]
[1741836741733,0.03060023,83894.0,83893.0,0.00012483]
[1741836742139,0.43605384,83894.0,83893.0,8.3e-07]
[1741836742547,0.41737261,83894.0,83893.0,8.3e-07]
[1741836742747,0.50007261,83894.0,83893.0,8.3e-07]
[1741836743569,0.50207261,83894.0,83893.0,8.3e-07]
[1741836743978,0.50007261,83894.0,83893.0,8.3e-07]
[1741836744180,0.50507261,83894.0,83893.0,8.3e-07]
[1741836744383,0.55447261,83894.0,83893.0,8.3e-07]
[1741836745190,0.57947261,83894.0,83893.0,8.3e-07]
[1741836745625,0.333074,83874.0,83873.0,6.3e-07]
[1741836745793,0.87956761,83874.0,83873.0,6.3e-07]
[1741836746795,0.88156761,83874.0,83873.0,6.3e-07]
[1741836746999,0.89825727,83874.0,83873.0,6.3e-07]
[1741836747639,0.90025727,83874.0,83873.0,6.3e-07]
[1741836748832,0.94665727,83874.0,83873.0,6.3e-07]
[1741836750285,0.94665727,83874.0,83871.0,6.3e-07]
[1741836750286,0.011922,83872.0,83871.0,6.3e-07]
[1741836750493,0.011922,83872.0,83868.0,8.3e-07]
[1741836750494,0.011923,83869.0,83868.0,8.3e-07]
[1741836752922,0.014923,83869.0,83868.0,8.3e-07]
[1741836753190,0.011923,83869.0,83868.0,8.3e-07]
[1741836753761,0.015923,83869.0,83868.0,8.3e-07]
[1741836754326,0.03975156,83869.0,83868.0,8.3e-07]
[1741836755257,0.44520517,83869.0,83868.0,8.3e-07]
[1741836757229,0.42137661,83869.0,83868.0,8.3e-07]
[1741836757431,0.56241661,83869.0,83868.0,8.3e-07]
[1741836759822,0.40945361,83869.0,83868.0,8.3e-07]
[1741836759977,0.40945361,83869.0,83868.0,0.01192383]
[1741836760183,0.40945361,83869.0,83868.0,0.02482628]
[1741836760427,0.40545361,83869.0,83868.0,0.02482628]
[1741836760632,0.40545361,83878.0,83877.0,0.011922]
[1741836761168,0.01192,83888.0,83881.0,0.011921]
[1741836761381,0.41737361,83890.0,83882.0,0.011921]
[1741836761523,0.25038,83872.0,83868.0,0.01307278]
[1741836761748,0.25038,83872.0,83868.0,0.00017033]
[1741836762003,0.011922,83874.0,83868.0,0.00017033]
[1741836762212,0.238464,83870.0,83868.0,0.00017033]
[1741836762587,0.011923,83869.0,83868.0,0.00017033]
[1741836763358,0.23846,83872.0,83868.0,0.00017033]
[1741836763598,0.011923,83869.0,83868.0,0.00017033]
[1741836764226,0.011923,83870.0,83868.0,0.00017033]
[1741836765051,0.250389,83870.0,83868.0,0.00017033]
[1741836765451,0.011923,83870.0,83868.0,0.00017033]
[1741836766007,0.01868697,83877.0,83875.0,0.238448]
[1741836766340,0.01868697,83877.0,83876.0,0.0131142]
[1741836766732,0.01868697,83877.0,83876.0,0.011922]
[1741836766930,0.01868697,83877.0,83875.0,0.14112]
[1741836767591,0.250369,83876.0,83875.0,0.14412]
[1741836767793,0.250386,83871.0,83868.0,0.00017033]
[1741836768040,0.011923,83870.0,83869.0,0.1412]
[1741836768392,0.25039,83869.0,83868.0,0.00017033]
[1741836768751,0.011922,83874.0,83868.0,0.00017033]
[1741836768941,0.011922,83874.0,83868.0,0.25056133]
[1741836769349,0.25038,83873.0,83868.0,0.00017033]
[1741836769508,0.011922,83873.0,83868.0,0.00017033]
[1741836770055,0.011922,83872.0,83868.0,0.00017033]
[1741836770212,0.250379,83873.0,83868.0,0.00017033]
[1741836770421,0.011922,83872.0,83868.0,0.00017033]
[1741836770638,0.250379,83873.0,83868.0,0.00017033]
[1741836770842,0.011923,83869.0,83868.0,0.00017033]
[1741836771655,0.238461,83871.0,83868.0,0.00017033]
[1741836771995,0.011923,83869.0,83868.0,0.00117033]
[1741836772197,0.011923,83869.0,83868.0,0.00017033]
[1741836773213,0.41737661,83869.0,83868.0,0.00017033]
[1741836773584,0.41737661,83869.0,83868.0,0.00217033]
[1741836773996,0.41737661,83869.0,83868.0,0.00017033]
[1741836774195,0.41837661,83869.0,83868.0,0.00017033]
[1741836776232,0.43706673,83869.0,83868.0,0.00017033]